bitfinex-derivatives/quotes_BTCF0:USTF0_20241025
["timestamp","ask_amount","ask_price","bid_price","bid_amount"]
[1729859013380,0.0949,68076.0,68075.0,0.073488]
[1729859013577,0.1412453,68081.0,68074.0,0.05860856]
[1729859013887,0.1412453,68081.0,68078.0,0.1174371]
[1729859014392,0.3608,68083.0,68078.0,0.0439521]
[1729859014592,0.3608,68083.0,68081.0,0.073482]
[1729859015386,0.38213629,68083.0,68082.0,0.073481]
[1729859015588,0.38213629,68083.0,68078.0,0.0439521]
[1729859015777,0.1412453,68082.0,68078.0,0.073484]
[1729859016588,0.38289629,68083.0,68078.0,0.073484]
[1729859016589,0.1412453,68079.0,68078.0,0.073484]
[1729859018082,0.25822697,68079.0,68078.0,0.073484]
[1729859018793,0.25822697,68079.0,68078.0,0.085234]
[1729859019083,0.25822697,68079.0,68078.0,0.01175]
[1729859019480,0.21311468,68079.0,68078.0,0.01175]
[1729859020589,0.07186938,68079.0,68078.0,0.085235]
[1729859020991,0.07186938,68079.0,68078.0,0.2264803]
[1729859023392,0.03325674,68079.0,68078.0,0.2264803]
[1729859024097,0.03325674,68079.0,68078.0,0.2147303]
[1729859025288,0.03307095,68079.0,68078.0,0.2147303]
[1729859026191,0.38213629,68083.0,68078.0,0.1412453]
[1729859026585,0.38213629,68083.0,68081.0,0.073481]
[1729859026896,0.073473,68090.0,68082.0,0.073481]
[1729859027093,0.073473,68090.0,68086.0,0.073476]
[1729859027489,0.38168837,68089.0,68086.0,0.073476]
[1729859027684,0.38168837,68089.0,68084.0,0.073479]
[1729859027685,0.1412453,68087.0,68084.0,0.073479]
[1729859028795,0.38168837,68089.0,68087.0,0.073475]
[1729859030187,0.38168837,68089.0,68088.0,0.073474]
[1729859031700,0.45516137,68089.0,68081.0,0.1412453]
[1729859031894,0.45516137,68089.0,68087.0,0.073475]
[1729859031895,0.38168837,68089.0,68087.0,0.073475]
[1729859032789,0.38168837,68089.0,68081.0,0.1412453]
[1729859033198,0.07176841,68088.0,68081.0,0.1412453]
[1729859033491,0.38168837,68089.0,68081.0,0.1412453]
[1729859033492,0.07176841,68087.0,68085.0,0.073477]
[1729859033795,0.07176841,68086.0,68085.0,0.073478]
[1729859034292,0.07176841,68086.0,68085.0,0.174358]
[1729859034489,0.07180776,68088.0,68085.0,0.174358]
[1729859034697,0.07180776,68087.0,68086.0,0.073476]
[1729859035800,0.21305306,68087.0,68086.0,0.073476]
[1729859036391,0.16446704,68087.0,68086.0,0.073476]
[1729859037197,0.20957483,68087.0,68086.0,0.073476]
[1729859041203,0.09265928,68087.0,68086.0,0.073476]
[1729859041999,0.38168837,68089.0,68085.0,0.10088]
[1729859042208,0.38168837,68089.0,68087.0,0.073475]
[1729859042594,0.38168837,68089.0,68085.0,0.10088]
[1729859042595,0.38168837,68089.0,68088.0,0.073474]
[1729859042901,0.0916,68099.0,68089.0,0.073473]
[1729859042902,0.0609,68099.0,68089.0,0.073473]
[1729859043105,0.0609,68099.0,68091.0,0.04393227]
[1729859043302,0.0609,68099.0,68095.0,0.073467]
[1729859043498,0.0609,68099.0,68096.0,0.073465]
[1729859043696,0.08254783,68099.0,68098.0,0.073463]
[1729859043893,0.17520711,68099.0,68098.0,0.073463]
[1729859044199,0.08254783,68099.0,68098.0,0.073463]
[1729859044811,0.08254783,68099.0,68095.0,0.10088]
[1729859045012,0.09265928,68096.0,68095.0,0.174346]
[1729859047604,0.08254783,68099.0,68095.0,0.10088]
[1729859047808,0.08254783,68099.0,68098.0,0.073463]
[1729859048199,0.19998565,68099.0,68098.0,0.073463]
[1729859048401,0.16938565,68099.0,68098.0,0.073463]
[1729859050211,0.16938565,68099.0,68095.0,0.10088]
[1729859050212,0.53018565,68099.0,68095.0,0.10088]
[1729859050419,0.17013701,68098.0,68097.0,0.16612428]
[1729859051410,0.16760208,68098.0,68097.0,0.16612428]
[1729859051727,0.11490289,68098.0,68097.0,0.16612428]
[1729859052008,0.08260245,68098.0,68097.0,0.16612428]
[1729859052312,0.11490289,68098.0,68097.0,0.26560428]
[1729859052511,0.14663494,68098.0,68097.0,0.26560428]
[1729859052712,0.19173506,68098.0,68097.0,0.26560428]
[1729859053008,0.06980277,68098.0,68097.0,0.48589719]
[1729859053212,0.06980277,68098.0,68097.0,0.92645719]
[1729859053411,0.14663494,68106.0,68105.0,0.073456]
[1729859053625,0.11610274,68106.0,68105.0,0.16611528]
[1729859053918,0.16130205,68108.0,68107.0,0.073454]
[1729859054113,0.27780484,68108.0,68107.0,0.172934]
[1729859054315,0.11650279,68108.0,68107.0,0.172934]
[1729859055219,0.11650283,68108.0,68107.0,0.172934]
[1729859055403,0.07162092,68108.0,68107.0,1.06687328]
[1729859056219,0.14655874,68117.0,68116.0,0.073444]
[1729859056410,0.073438,68122.0,68118.0,0.073441]
[1729859056611,0.434239,68121.0,68118.0,0.16610028]
[1729859057112,0.073439,68121.0,68118.0,0.16610028]
[1729859057313,0.12295928,68123.0,68118.0,0.16610028]
[1729859057619,0.12295928,68123.0,68121.0,0.09265928]
[1729859057620,0.0303,68123.0,68121.0,0.09265928]
[1729859058119,0.02167393,68123.0,68121.0,0.09265928]
[1729859058419,0.0307,68124.0,68117.0,0.09948]
[1729859058420,0.0307,68124.0,68122.0,0.073438]
[1729859059117,0.05172202,68124.0,68122.0,0.073438]
[1729859059814,0.05172202,68124.0,68120.0,0.14110365]
[1729859060019,0.0307,68124.0,68123.0,0.073437]
[1729859061818,0.02161678,68125.0,68124.0,0.073435]
[1729859062015,0.0326,68129.0,68123.0,0.14110365]
[1729859062218,0.0326,68129.0,68126.0,0.073433]
[1729859062419,0.0326,68129.0,68127.0,0.09948]
[1729859062617,0.0326,68129.0,68127.0,0.172912]
[1729859062818,0.0326,68129.0,68127.0,0.09948]
[1729859063013,0.0536834,68129.0,68128.0,0.073431]
[1729859063218,0.0210834,68129.0,68128.0,0.073431]
[1729859063413,0.032,68131.0,68130.0,0.073429]
[1729859064121,0.032,68131.0,68130.0,0.21453265]
[1729859064318,0.3608,68132.0,68131.0,0.073428]
[1729859064518,0.38205472,68132.0,68131.0,0.073428]
[1729859064921,0.38205472,68132.0,68131.0,0.172868]
[1729859065122,0.38205472,68132.0,68131.0,0.31397165]
[1729859066125,0.38205472,68132.0,68131.0,0.172868]
[1729859068313,0.3608,68132.0,68131.0,0.172868]
[1729859071223,0.43502342,68132.0,68121.0,0.50190365]
[1729859071424,0.14110365,68123.0,68121.0,0.00088]
[1729859071617,0.10582342,68122.0,68119.0,0.07344]
[1729859071818,0.10582342,68122.0,68120.0,0.09944]
[1729859071819,0.07422342,68121.0,68120.0,0.09944]
[1729859072020,0.07422342,68121.0,68120.0,0.17288]
[1729859072219,0.07422342,68121.0,68120.0,0.09944]
[1729859072421,0.21532707,68121.0,68120.0,0.17288]
[1729859072826,0.26041074,68121.0,68120.0,0.17288]
[1729859073821,0.26041074,68121.0,68120.0,0.07344]
[1729859074035,0.26041074,68121.0,68120.0,0.17288]
[1729859075131,0.33384974,68121.0,68120.0,0.07344]
[1729859076533,0.50109875,68121.0,68120.0,0.07344]
[1729859076928,0.50109875,68121.0,68120.0,0.17252]
[1729859077128,0.42765975,68121.0,68120.0,0.17252]
[1729859077328,0.40696948,68121.0,68120.0,0.17252]
[1729859077629,0.26041074,68121.0,68120.0,0.17252]
[1729859078231,0.14110365,68121.0,68120.0,0.17252]
[1729859078535,0.0316,68122.0,68121.0,0.073439]
[1729859081946,0.0316,68122.0,68121.0,0.11737127]
[1729859082431,0.0316,68122.0,68121.0,0.073439]
[1729859084530,0.0316,68122.0,68121.0,0.13204756]
[1729859086243,0.12420349,68122.0,68121.0,0.13204756]
[1729859087539,0.0316,68122.0,68121.0,0.073439]
[1729859089243,0.12420349,68122.0,68121.0,0.073439]
[1729859090537,0.12420349,68122.0,68121.0,0.13195903]
[1729859092731,0.12420349,68122.0,68121.0,0.073439]
[1729859092936,0.12420349,68122.0,68121.0,0.13195315]
[1729859093434,0.1574999,68122.0,68121.0,0.073439]
[1729859097237,0.15735162,68122.0,68121.0,0.073439]
[1729859098532,0.06474813,68122.0,68121.0,0.073439]
[1729859098733,0.15735162,68122.0,68121.0,0.073439]
[1729859100437,0.06474813,68122.0,68121.0,0.073439]
[1729859100929,0.0648404,68122.0,68121.0,0.073439]
[1729859101330,0.0316,68122.0,68121.0,0.13195315]
[1729859102547,0.0316,68122.0,68121.0,0.073439]
[1729859103340,0.0316,68122.0,68121.0,0.13206232]
[1729859103545,0.0316,68122.0,68114.0,0.3608]
[1729859103546,0.12420349,68122.0,68118.0,0.0439727]
[1729859103734,0.12420349,68122.0,68116.0,0.05862332]
[1729859103735,0.16604449,68119.0,68116.0,0.0439727]
[1729859104040,0.45340349,68117.0,68116.0,0.073444]
[1729859104543,0.45340349,68117.0,68116.0,0.085184]
[1729859106551,0.3608,68117.0,68116.0,0.085184]
[1729859107039,0.3608,68117.0,68116.0,0.096924]
[1729859108234,0.43117704,68117.0,68116.0,0.096924]
[1729859112949,0.52378053,68117.0,68116.0,0.096924]
[1729859113543,0.56886802,68117.0,68116.0,0.096924]
[1729859114349,0.20796944,68117.0,68116.0,0.096924]
[1729859114543,0.11536595,68117.0,68116.0,0.096924]
[1729859114751,0.07027846,68117.0,68116.0,0.096924]
[1729859116349,0.09260349,68118.0,68117.0,0.073443]
[1729859121050,0.52684549,68118.0,68116.0,0.01174]
[1729859121252,0.073443,68117.0,68116.0,0.01174]
[1729859121455,0.105143,68117.0,68116.0,0.01174]
[1729859121955,0.465943,68117.0,68116.0,0.01174]
[1729859123053,0.3925,68117.0,68116.0,0.085184]
[1729859123249,0.42499539,68117.0,68116.0,0.085184]
[1729859123452,0.06419539,68117.0,68116.0,0.085184]
[1729859123647,0.42499678,68117.0,68116.0,0.085184]
[1729859127352,0.46261851,68117.0,68116.0,0.085184]
[1729859127547,0.53606151,68117.0,68116.0,0.01174]
[1729859129562,0.49843978,68117.0,68116.0,0.01174]
[1729859129859,0.58126365,68117.0,68116.0,0.01174]
[1729859131558,0.465943,68117.0,68116.0,0.07031869]
[1729859132747,0.465943,68117.0,68116.0,0.08205869]
[1729859133152,0.906383,68117.0,68116.0,0.08209185]
[1729859133353,0.906383,68117.0,68116.0,0.02348]
[1729859133555,0.906383,68117.0,68111.0,0.05861185]
[1729859133556,0.073448,68112.0,68111.0,0.05861185]
[1729859133755,0.073453,68108.0,68107.0,0.05861185]
[1729859133964,0.073454,68107.0,68106.0,0.05861185]
[1729859134157,0.16605749,68107.0,68106.0,0.05861185]
[1729859134359,0.09260349,68107.0,68101.0,0.05861185]
[1729859134561,0.52686249,68102.0,68101.0,0.05861185]
[1729859134962,0.45340349,68102.0,68101.0,0.05861185]
[1729859135362,0.52686349,68102.0,68100.0,0.05861185]
[1729859136361,0.073461,68101.0,68099.0,0.05861185]
[1729859136556,0.09260349,68100.0,68099.0,0.05861185]
[1729859137659,0.09260349,68100.0,68099.0,0.13207385]
[1729859138363,0.09260349,68100.0,68099.0,0.073462]
[1729859138660,0.16606449,68100.0,68099.0,0.073462]
[1729859138857,0.18758052,68100.0,68099.0,0.073462]
[1729859142260,0.18758052,68100.0,68099.0,0.13196726]
[1729859143055,0.18758052,68100.0,68099.0,0.073462]
[1729859143266,0.09260349,68100.0,68099.0,0.073462]
[1729859146764,0.16606449,68100.0,68099.0,0.073462]
[1729859159171,0.073461,68100.0,68099.0,0.073462]
[1729859159377,0.02133648,68101.0,68100.0,0.073461]
[1729859159573,0.09260349,68101.0,68100.0,0.073461]
[1729859160679,0.20911995,68101.0,68100.0,0.073461]
[1729859161471,0.11651646,68101.0,68100.0,0.073461]
[1729859161674,0.07180955,68101.0,68100.0,0.085201]
[1729859161873,0.07180955,68101.0,68100.0,0.183041]
[1729859162372,0.11690361,68101.0,68100.0,0.183041]
[1729859162877,0.19036361,68101.0,68100.0,0.183041]
[1729859163673,0.2829671,68101.0,68100.0,0.183041]
[1729859164475,0.11690361,68101.0,68100.0,0.183041]
[1729859164785,0.23787304,68101.0,68100.0,0.085201]
[1729859165080,0.25926161,68101.0,68100.0,0.085201]
[1729859165284,0.16441304,68101.0,68100.0,0.085201]
[1729859165777,0.07180955,68101.0,68100.0,0.085201]
[1729859166683,0.14526955,68101.0,68100.0,0.183041]
[1729859167779,0.14526955,68101.0,68100.0,0.085201]
[1729859167980,0.14526955,68101.0,68100.0,0.183001]
[1729859168382,0.14498486,68101.0,68100.0,0.183001]
[1729859168586,0.07346,68101.0,68100.0,0.183001]
[1729859169782,0.09260349,68102.0,68100.0,0.10954]
[1729859169984,0.073458,68104.0,68103.0,0.073457]
[1729859170287,0.16606149,68104.0,68103.0,0.073457]
[1729859173791,0.073458,68104.0,68103.0,0.073457]
[1729859175290,0.073458,68104.0,68100.0,0.10954]
[1729859175291,0.3608,68105.0,68100.0,0.10954]
[1729859175485,0.45340349,68105.0,68104.0,0.073457]
[1729859176381,0.52685949,68105.0,68104.0,0.073457]
[1729859176993,0.073456,68105.0,68104.0,0.073457]
[1729859177296,0.073448,68112.0,68104.0,0.073457]
[1729859177297,0.3608,68139.0,68104.0,1.37115645]
[1729859177499,0.0332,68134.0,68133.0,0.073426]
[1729859177889,0.12580349,68134.0,68133.0,0.073426]
[1729859178788,0.12580349,68134.0,68133.0,0.171226]
[1729859180689,0.12580349,68134.0,68133.0,0.073426]
[1729859180998,0.12580349,68134.0,68133.0,0.171226]
[1729859181997,0.21840698,68134.0,68133.0,0.171226]
[1729859182301,0.12580349,68134.0,68133.0,0.171226]
[1729859182693,0.0332,68134.0,68133.0,0.171226]
[1729859182897,0.12580349,68134.0,68133.0,0.171226]
[1729859183087,0.24651701,68134.0,68133.0,0.171226]
[1729859183288,0.24651701,68134.0,68126.0,0.0323]
[1729859183601,0.09260349,68129.0,68128.0,0.073431]
[1729859183897,0.16749785,68129.0,68128.0,0.073431]
[1729859187498,0.16614597,68129.0,68128.0,0.073431]
[1729859189099,0.07354248,68129.0,68128.0,0.073431]
[1729859189397,0.07355411,68129.0,68128.0,0.09260349]
[1729859189597,0.07355411,68129.0,68128.0,0.16603449]
[1729859191195,0.09260349,68132.0,68131.0,0.073428]
[1729859198204,0.12654795,68132.0,68131.0,0.073428]
[1729859198498,0.12654795,68132.0,68131.0,0.434228]
[1729859199497,0.1660996,68132.0,68131.0,0.434228]
[1729859200301,0.1660996,68132.0,68131.0,0.073428]
[1729859200499,0.1660996,68132.0,68131.0,0.171148]
[1729859200701,0.07349611,68132.0,68131.0,0.171148]
[1729859201599,0.1662087,68132.0,68131.0,0.171148]
[1729859202200,0.1662087,68132.0,68131.0,0.073428]
[1729859202399,0.1662087,68132.0,68131.0,0.171148]
[1729859203202,0.21128291,68132.0,68131.0,0.171148]
[1729859203906,0.1662087,68132.0,68131.0,0.171148]
[1729859204298,0.2112829,68132.0,68131.0,0.171148]
[1729859204607,0.11867941,68132.0,68131.0,0.171148]
[1729859204905,0.2112829,68132.0,68131.0,0.171148]
[1729859205099,0.11867941,68132.0,68131.0,0.171148]
[1729859205300,0.07360521,68132.0,68131.0,0.171148]
[1729859206295,0.02131582,68138.0,68137.0,0.073421]
[1729859206495,0.3608,68139.0,68138.0,0.07342]
[1729859206896,0.45340349,68139.0,68138.0,0.07342]
[1729859207600,0.48739761,68139.0,68138.0,0.07342]
[1729859208809,0.50890091,68139.0,68138.0,0.07342]
[1729859210909,0.50890091,68139.0,68129.0,0.3608]
[1729859211110,0.09260349,68130.0,68129.0,0.3608]
[1729859211312,0.09260349,68130.0,68129.0,0.53195]
[1729859211727,0.53292349,68130.0,68125.0,0.09772]
[1729859211905,0.45340349,68126.0,68125.0,0.171154]
[1729859212099,0.45340349,68126.0,68125.0,0.073434]
[1729859213218,0.62263225,68126.0,68125.0,0.073434]
[1729859213408,0.62263225,68126.0,68125.0,0.171154]
[1729859213610,0.62263225,68126.0,68125.0,0.09607124]
[1729859213810,0.26183225,68126.0,68125.0,0.09607124]
[1729859214008,0.20915485,68126.0,68125.0,0.16950524]
[1729859214308,0.11655136,68126.0,68125.0,0.16950524]
[1729859215113,0.11655136,68126.0,68125.0,0.26210873]
[1729859215317,0.11655136,68126.0,68125.0,0.16950524]
[1729859217817,0.11655136,68126.0,68125.0,0.26210873]
[1729859219713,0.11580876,68126.0,68125.0,0.26210873]
[1729859220722,0.11580876,68126.0,68125.0,0.28345801]
[1729859221207,0.16138309,68128.0,68125.0,0.28345801]
[1729859221407,0.02073752,68131.0,68130.0,0.073429]
[1729859221607,0.09260349,68133.0,68127.0,0.3608]
[1729859221811,0.09260349,68131.0,68130.0,0.073429]
[1729859223017,0.10552,68139.0,68127.0,0.3608]
[1729859223018,0.09260349,68134.0,68133.0,0.073426]
[1729859225014,0.0321,68139.0,68135.0,0.073423]
[1729859225215,0.09260349,68136.0,68135.0,0.073423]
[1729859228329,0.12548143,68136.0,68135.0,0.073423]
[1729859229028,0.12548143,68136.0,68127.0,0.3608]
[1729859229210,0.09260349,68128.0,68122.0,0.0318]
[1729859229415,0.09260349,68123.0,68122.0,0.105238]
[1729859229627,0.09260349,68123.0,68122.0,0.22370534]
[1729859231017,0.09260349,68126.0,68125.0,0.073434]
[1729859231815,0.09260349,68126.0,68125.0,0.171114]
[1729859232221,0.434986,68133.0,68130.0,0.073428]
[1729859232419,0.09260349,68131.0,68130.0,0.073428]
[1729859232618,0.03297635,68131.0,68130.0,0.073428]
[1729859233722,0.03294607,68131.0,68126.0,0.073433]
[1729859233920,0.09260349,68127.0,68126.0,0.073433]
[1729859234326,0.09260349,68127.0,68126.0,0.171113]
[1729859235123,0.09260349,68127.0,68126.0,0.182853]
[1729859236422,0.435106,68133.0,68132.0,0.073427]
[1729859236729,0.52682949,68133.0,68132.0,0.073427]
[1729859236915,1.05975298,68133.0,68132.0,0.073427]
[1729859237120,0.96714949,68133.0,68132.0,0.073427]
[1729859238828,0.98632698,68133.0,68127.0,0.073431]
[1729859239033,0.073431,68128.0,68126.0,0.085172]
[1729859239221,0.3935,68127.0,68126.0,0.085172]
[1729859244428,0.41440658,68127.0,68126.0,0.085172]
[1729859250735,1.02080207,68127.0,68126.0,0.01174]
[1729859250930,1.02080207,68127.0,68117.0,0.073442]
[1729859250931,0.073439,68121.0,68117.0,0.073442]
[1729859251128,0.09260349,68119.0,68111.0,0.073449]
[1729859251333,0.09260349,68112.0,68111.0,0.073449]
[1729859251544,0.16360864,68112.0,68111.0,0.171169]
[1729859252042,0.07100515,68112.0,68111.0,0.171169]
[1729859252430,0.07100515,68112.0,68111.0,0.073449]
[1729859252625,0.07100515,68112.0,68111.0,0.171169]
[1729859253242,0.03285683,68112.0,68111.0,0.171169]
[1729859253739,0.03285683,68112.0,68111.0,0.531969]
[1729859254436,0.03285683,68112.0,68111.0,0.434249]
[1729859254645,0.03285683,68112.0,68111.0,0.531969]
[1729859255236,0.3608,68125.0,68124.0,0.073435]
[1729859255438,0.3608,68125.0,68124.0,0.16603849]
[1729859255439,0.39914443,68125.0,68124.0,0.16603849]
[1729859255637,0.03834443,68125.0,68124.0,0.16603849]
[1729859256443,0.03834443,68125.0,68124.0,0.073435]
[1729859256640,0.08342321,68126.0,68122.0,0.073438]
[1729859256942,0.08342321,68125.0,68124.0,0.01174]
[1729859257141,0.08342321,68125.0,68124.0,0.085175]
[1729859258235,0.08342321,68125.0,68124.0,0.17777849]
[1729859258644,0.0206523,68128.0,68127.0,0.073432]
[1729859258944,0.09260349,68131.0,68124.0,0.10434349]
[1729859259244,0.09260349,68131.0,68130.0,0.073429]
[1729859259942,0.11402195,68131.0,68130.0,0.073429]
[1729859264350,0.18744995,68131.0,68130.0,0.073429]
[1729859264549,0.07343,68130.0,68127.0,0.434231]
[1729859264939,0.09260349,68128.0,68127.0,0.434231]
[1729859265951,0.09260349,68128.0,68127.0,0.073431]
[1729859266654,0.20855466,68128.0,68123.0,0.12390349]
[1729859266854,0.16862512,68127.0,68124.0,0.09768]
[1729859267047,0.09260349,68128.0,68124.0,0.09768]
[1729859267048,0.16862512,68126.0,68125.0,0.073434]
[1729859267244,0.11595117,68126.0,68125.0,0.073434]
[1729859268148,0.11595117,68126.0,68125.0,0.171114]
[1729859272652,0.18938417,68126.0,68125.0,0.171114]
[1729859272854,0.18938417,68126.0,68125.0,0.09758019]
[1729859273047,0.18938417,68126.0,68123.0,0.0313]
[1729859273246,0.16862512,68125.0,68124.0,0.171115]
[1729859273449,0.11595117,68125.0,68124.0,0.171115]
[1729859273653,0.073433,68126.0,68124.0,0.09768]
[1729859273858,0.073433,68126.0,68125.0,0.073434]
[1729859274351,0.16603649,68126.0,68125.0,0.073434]
[1729859274750,0.073435,68124.0,68122.0,0.073437]
[1729859275055,0.073435,68124.0,68123.0,0.171117]
[1729859275254,0.09260349,68124.0,68120.0,0.43424]
[1729859275460,0.073437,68123.0,68121.0,0.09768]
[1729859275757,0.0309,68125.0,68124.0,0.073435]
[1729859275758,0.073435,68125.0,68124.0,0.073435]
[1729859276061,0.45340349,68126.0,68125.0,0.073434]
[1729859276749,0.52683649,68126.0,68125.0,0.085174]
[1729859278459,0.16603649,68126.0,68125.0,0.085174]
[1729859279357,0.16603649,68126.0,68125.0,0.01174]
[1729859280955,0.19764721,68126.0,68125.0,0.01174]
[1729859281558,0.27943075,68126.0,68125.0,0.01174]
[1729859281758,0.42619714,68126.0,68125.0,0.01174]
[1729859282258,0.31113075,68126.0,68125.0,0.01174]
[1729859282658,0.27952294,68126.0,68125.0,0.085174]
[1729859282856,0.31113681,68126.0,68125.0,0.085174]
[1729859283666,0.23770381,68126.0,68125.0,0.085174]
[1729859284158,0.3845451,68126.0,68125.0,0.085174]
[1729859284368,0.31113681,68126.0,68125.0,0.085174]
[1729859286255,0.23770381,68126.0,68125.0,0.085174]
[1729859288559,0.31113681,68126.0,68125.0,0.085174]
[1729859288760,0.19773649,68126.0,68125.0,0.085174]
[1729859292661,0.19773649,68126.0,68125.0,0.01174]
[1729859293564,0.29033998,68126.0,68125.0,0.01174]
[1729859294465,0.29033998,68126.0,68117.0,0.14156978]
[1729859294667,0.434242,68118.0,68117.0,0.09764]
[1729859295164,0.464442,68118.0,68117.0,0.09764]
[1729859295757,0.464442,68118.0,68115.0,0.11737478]
[1729859296059,0.09260349,68116.0,68115.0,0.11737478]
[1729859296456,0.16604749,68116.0,68115.0,0.04392978]
[1729859296656,0.16604749,68116.0,68114.0,0.04392978]
[1729859296861,0.09260349,68115.0,68114.0,0.11737578]
[1729859297055,0.16604849,68115.0,68114.0,0.11737578]
[1729859298468,0.16604849,68115.0,68114.0,0.073446]
[1729859299159,0.16604849,68115.0,68114.0,0.11737578]
[1729859299562,0.16604849,68115.0,68114.0,0.073446]
[1729859301470,0.0945493,68115.0,68114.0,0.073446]
[1729859301772,0.18715279,68115.0,68114.0,0.073446]
[1729859302664,0.18715279,68115.0,68114.0,0.11737578]
[1729859303665,0.18715279,68115.0,68114.0,0.073446]
[1729859303865,0.21909162,68115.0,68114.0,0.073446]
[1729859305570,0.03193883,68115.0,68114.0,0.52684949]
[1729859306074,0.03193148,68115.0,68114.0,0.53858949]
[1729859306269,0.09260349,68124.0,68114.0,0.53858949]
[1729859306467,0.09260349,68124.0,68122.0,0.073438]
[1729859306468,0.0320118,68123.0,68122.0,0.073438]
[1729859310763,0.0322036,68123.0,68122.0,0.073438]
[1729859311885,0.11409724,68124.0,68122.0,0.11736778]
[1729859312068,0.11409724,68124.0,68122.0,0.04392978]
[1729859312069,0.02149375,68124.0,68122.0,0.04392978]
[1729859312269,0.3608,68132.0,68123.0,0.073437]
[1729859312471,0.09260349,68124.0,68123.0,0.073437]
[1729859313174,0.38215123,68132.0,68121.0,0.05864008]
[1729859313382,0.073431,68129.0,68126.0,0.073433]
[1729859313583,0.09260349,68127.0,68126.0,0.11740952]
[1729859314182,0.09260349,68127.0,68126.0,0.073433]
[1729859314475,0.09260349,68127.0,68126.0,0.11740037]
[1729859314878,0.09260349,68127.0,68126.0,0.073433]
[1729859315682,0.09260349,68127.0,68126.0,0.11740032]
[1729859316071,0.09260349,68127.0,68126.0,0.11740034]
[1729859317981,0.09260349,68127.0,68126.0,0.073433]
[1729859318472,0.16603549,68127.0,68126.0,0.073433]
[1729859318777,0.16603549,68127.0,68121.0,0.04396734]
[1729859318983,0.09260349,68122.0,68121.0,0.073439]
[1729859319473,0.09260349,68122.0,68121.0,0.11740472]
[1729859319675,0.09260349,68122.0,68121.0,0.073439]
[1729859321379,0.09260349,68122.0,68121.0,0.11740446]
[1729859322076,0.09260349,68122.0,68121.0,0.073439]
[1729859322782,0.09260349,68122.0,68121.0,0.11740446]
[1729859322982,0.09260349,68122.0,68121.0,0.073439]
[1729859324179,0.09260349,68122.0,68121.0,0.434239]
[1729859324574,0.09260349,68122.0,68121.0,0.073439]
[1729859324979,0.09260349,68122.0,68121.0,0.11740411]
[1729859325783,0.09260349,68122.0,68121.0,0.073439]
[1729859326683,0.09260349,68122.0,68121.0,0.085179]
[1729859326883,0.16250192,68122.0,68121.0,0.085179]
[1729859327978,0.20758429,68122.0,68121.0,0.085179]
[1729859328686,0.28102229,68122.0,68121.0,0.085179]
[1729859329479,0.28083062,68122.0,68121.0,0.085179]
[1729859329674,0.28083062,68122.0,68121.0,0.01174]
[1729859330177,0.28083062,68122.0,68121.0,0.085179]
[1729859331486,0.37343411,68122.0,68121.0,0.085179]
[1729859331787,0.28083062,68122.0,68121.0,0.085179]
[1729859332681,0.28083062,68122.0,68121.0,0.01174]
[1729859333283,0.28083062,68122.0,68121.0,0.02348]
[1729859333779,0.16604149,68122.0,68121.0,0.06744511]
[1729859334682,0.16604149,68122.0,68121.0,0.02348]
[1729859335185,0.16604149,68122.0,68121.0,0.06748208]
[1729859336678,0.16604149,68122.0,68121.0,0.02348]
[1729859338081,0.16604149,68122.0,68121.0,0.1409249]
[1729859339391,0.09260349,68122.0,68121.0,0.1409249]
[1729859341799,0.3608,68123.0,68122.0,0.073438]
[1729859341989,0.56850175,68123.0,68122.0,0.073438]
[1729859342184,0.568546,68123.0,68122.0,0.073438]
[1729859342589,0.207746,68123.0,68122.0,0.073438]
[1729859342787,0.568546,68123.0,68122.0,0.073438]
[1729859346406,0.11514251,68123.0,68122.0,0.073438]
[1729859347600,0.11514251,68123.0,68122.0,0.136638]
[1729859347793,0.11514251,68123.0,68122.0,0.148378]
[1729859349105,0.09260349,68125.0,68124.0,0.073435]
[1729859351913,0.09260349,68125.0,68124.0,0.11744931]
[1729859352607,0.09260349,68125.0,68124.0,0.073435]
[1729859357008,0.09260349,68125.0,68124.0,0.04178232]
[1729859357009,0.17019391,68125.0,68124.0,0.04178232]
[1729859357203,0.20793772,68125.0,68124.0,0.04178232]
[1729859357608,0.33404968,68125.0,68124.0,0.04178232]
[1729859357809,0.28137172,68125.0,68124.0,0.04178232]
[1729859358705,0.073437,68123.0,68122.0,0.01174]
[1729859359102,0.18877123,68123.0,68122.0,0.01174]
[1729859361212,0.18814858,68123.0,68122.0,0.01174]
[1729859362315,0.14306565,68123.0,68122.0,0.01174]
[1729859363011,0.11084578,68123.0,68122.0,0.01174]
[1729859363212,0.073437,68123.0,68122.0,0.01174]
[1729859364011,0.073437,68123.0,68122.0,0.085178]
[1729859365200,0.14307966,68123.0,68122.0,0.085178]
[1729859365407,0.18816258,68123.0,68122.0,0.085178]
[1729859366008,0.073437,68123.0,68122.0,0.085178]
[1729859367408,0.073437,68123.0,68122.0,0.01174]
[1729859374210,0.02119796,68126.0,68122.0,0.01174]
[1729859374421,0.14689628,68127.0,68122.0,0.01174]
[1729859374422,0.14689628,68127.0,68126.0,0.073433]
[1729859375217,0.14337234,68127.0,68126.0,0.073433]
[1729859377414,0.1641294,68127.0,68126.0,0.073433]
[1729859378015,0.20919868,68127.0,68126.0,0.073433]
[1729859379119,0.09418906,68127.0,68126.0,0.073433]
[1729859380517,0.18679255,68127.0,68126.0,0.073433]
[1729859384134,0.18679255,68127.0,68126.0,0.1174872]
[1729859384432,0.18679255,68127.0,68126.0,0.073433]
[1729859385131,0.18679255,68127.0,68126.0,0.085173]
[1729859385326,0.18679255,68127.0,68126.0,0.12922637]
[1729859386633,0.18679255,68127.0,68126.0,0.05579337]
[1729859387035,0.18679255,68127.0,68126.0,0.01174]
[1729859387225,0.21908627,68127.0,68126.0,0.01174]
[1729859387623,0.05305084,68127.0,68126.0,0.445973]
[1729859389527,0.05305084,68127.0,68126.0,0.085173]
[1729859389832,0.14564562,68127.0,68126.0,0.085173]
[1729859390021,0.11336055,68127.0,68126.0,0.085173]
[1729859390628,0.14560777,68127.0,68126.0,0.085173]
[1729859394130,0.22792348,68127.0,68126.0,0.085173]
[1729859394339,0.30719368,68127.0,68126.0,0.085173]
[1729859394633,0.38950939,68127.0,68126.0,0.085173]
[1729859396432,0.28059992,68127.0,68126.0,0.085173]
[1729859396740,0.22792348,68127.0,68126.0,0.085173]
[1729859396958,0.22766796,68127.0,68126.0,0.085173]